Cogmind - Beta 15 *** ADVENTURER MODE // 2025.09.23 @ 16:45:40 Player: Blind Result: Destroyed by S-10 Pest with Light Assault Rifle Performance ------------- Evolutions (1) 500 Regions Visited (4) 800 Robots Destroyed (19) 95 Value Destroyed (417) 417 Prototype IDs (6) 120 Alien Tech Used (0) 0 Bonus (0) 0 TOTAL SCORE: 1932 Bonus ------- None Cogmind --------- Core Integrity 0/400 Matter 290/300 Energy 88/100 System Corruption 1% Temperature Cool (0) Movement Flying (100) Ox1 Location -9/Storage Parts ------- > --- POWER (1) -------- (None) > --- PROPULSION (3) --- Cooled VTOL Module > --- UTILITY (3) ------ Small Storage Unit Weapon Shielding > --- WEAPON (2) ------- Assault Rifle > --- INVENTORY (8) ---- Assault Rifle Peak State ------------ > --- POWER ------------ Cooled Ion Engine > --- PROPULSION ------- Aluminum Leg Aluminum Leg Cooled VTOL Module > --- UTILITY ---------- Small Storage Unit Experimental Sensor Array Weapon Shielding > --- WEAPON ----------- Beamcaster > --- INVENTORY -------- Heavy Ion Engine [Rating: 26] Favorites ----------- Power Light Nuclear Core Engine Ion Engine Power Core Light Nuclear Core Propulsion Light Treads Treads Light Treads Leg Aluminum Leg Flight Unit Cooled VTOL Module Utility Small Storage Unit Device Experimental Sensor Array Storage Small Storage Unit Protection Weapon Shielding Weapon Light Cannon Energy Gun Beamcaster Ballistic Gun Assault Rifle Ballistic Cannon Light Cannon Launcher Grenade Launcher Build | -11 -10 -10 -9 -9 ------- Run | Yrd Mat Min Mat Sto Slots Evolved 2 | . . . 2 . Power . | . . . . . Propulsion 1 | . . . 1 . Utility 1 | . . . 1 . Weapon . | . . . . . Parts Attached 28 | 6 6 11 1 4 Power 6 | 1 1 2 . 2 Engine 5 | 1 . 2 . 2 Core 1 | . 1 . . . Reactor . | . . . . . Propulsion 8 | 2 . 5 . 1 Treads 4 | 2 . 2 . . Leg 3 | . . 3 . . Wheel . | . . . . . Hover . | . . . . . Flight 1 | . . . . 1 Utility 7 | 1 2 3 1 . Device 3 | . 1 2 . . Storage 2 | 1 1 . . . Processor . | . . . . . Hackware . | . . . . . Protection 2 | . . 1 1 . Artifact . | . . . . . Weapon 7 | 2 3 1 . 1 Energy Gun 2 | 1 . 1 . . Energy Cannon . | . . . . . Ballistic Gun 2 | 1 . . . 1 Ballistic Cannon 2 | . 2 . . . Launcher 1 | . 1 . . . Special Weapon . | . . . . . Impact Weapon . | . . . . . Slashing Weapon . | . . . . . Piercing Weapon . | . . . . . Special Melee Weapon . | . . . . . Unidentified Prototypes 4 | . . 2 . 2 Parts Lost 13 | . . 6 1 6 Power 4 | . . 2 . 2 Propulsion 3 | . . 1 . 2 Utility 2 | . . 1 . 1 Weapon 4 | . . 2 1 1 Highest Loss Streak 6 | . . 6 1 5 To Critical Strikes . | . . . . . Average Backups 3 | 1 4 5 . 1 Power . | . . . . . Propulsion . | . . . . . Utility 1 | . . 2 . . Weapon 1 | 1 2 2 . . Tool/Special . | . . . . . Unused Backups 10 | 4 3 3 . . Power 1 | 1 . . . . Propulsion 4 | 2 2 . . . Utility 2 | . 1 1 . . Weapon 3 | 1 . 2 . . Tool/Special . | . . . . . Average Slot Usage (%) 86 | . 97 88 86 71 Engine 5 | . 3 1 11 10 Core 6 | . 10 11 . . Treads 16 | . 28 22 . . Leg 8 | . . 3 22 18 Device 9 | . 11 7 11 9 Storage 11 | . 14 8 11 11 Protection 4 | . . 3 10 11 Energy Gun 5 | . 4 1 11 9 Ballistic Gun 1 | . 3 . . . Ballistic Cannon 14 | . 17 25 10 . Peak Build Rating 26 | 6 9 21 20 26 Average Rating 13 | 4 8 14 19 19 On Entrance 10 | . 6 9 19 19 Naked Turns . | . . . . . Heaviest Build 56 | 14 17 56 20 20 Greatest Support 40 | 40 40 40 20 20 Greatest Overweight (x) 5 | . . 5 . 4 Average Overweight (x) . | . . . . . Largest Inventory Capacity 20 | 8 20 20 8 8 Average Capacity 7 | 6 8 7 8 8 Most Carried 8 | 6 8 8 2 3 Average Carried 3 | 1 4 5 . 1 Final Capacity 8 | 8 8 8 8 8 Final Carried 8 | . 8 2 . 1 Class Distribution -------------------- 85% | Mutant 14% | Scavenger-Mutant Dominant Class ---------------- Mutant | -10/Materials Mutant | -10/Mines Scavenger-Mutant | -9/Materials Mutant | -9/Storage Resources | -11 -10 -10 -9 -9 ----------- Run | Yrd Mat Min Mat Sto Matter Collected 810 | 175 223 351 . 61 Remotely . | . . . . . Salvage Created 546 | . 237 196 44 69 Parts 33 | . 12 8 4 9 Haulers Intercepted . | . . . . . Recyclers Shooed . | . . . . . Parts Field Recycled . | . . . . . Retrieved Matter . | . . . . . Parts Self-Destructed . | . . . . . Prevented . | . . . . . Kills | -11 -10 -10 -9 -9 ------- Run | Yrd Mat Min Mat Sto Combat Hostiles Destroyed 22 | . 8 11 1 2 Guns 7 | . 3 1 1 2 Cannons 14 | . 4 10 . . AOE 1 | . 1 . . . Classes Destroyed 6 | . 4 2 . . Worker 2 | . 1 . . 1 Recycler 1 | . . 1 . . Watcher 3 | . 2 . 1 . Swarmer 5 | . 3 . 1 1 Grunt 8 | . 5 2 . 1 Assembled 9 | . . 9 . . Best Kill Streak 6 | . 6 6 1 2 Combat Bots Only 6 | . 3 6 1 1 Max Kills in Single Turn 1 | . 1 1 1 1 Gunslinging . | . . . . . Exploded 1 | . 1 . . . Melee . | . . . . . Uniques/NPCs Destroyed . | . . . . . Combat | -11 -10 -10 -9 -9 -------- Run | Yrd Mat Min Mat Sto Hostile Shots Fired 319 | . 28 85 33 173 Missed 93 | . 11 21 14 47 Hits 226 | . 17 64 19 126 Melee 5 | . . 5 . . Projectile 221 | . 17 59 19 126 Critical Strikes 1 | . . . . 1 Damage Taken 1982 | . 138 756 146 942 Core 572 | . 28 143 34 367 Absorbed by Shields . | . . . . . Redirected to Shielding 74 | . . 45 9 20 Ignored by Resistances 602 | . 44 217 45 296 Regen/Repaired (Parts) 11 | . 11 . . . Core Remaining (%) 65 | 100 . 31 . . Volleys Fired 63 | . 28 20 5 10 Largest 2 | . 2 2 2 1 Hottest 105 | . 60 70 105 75 Shots Fired 102 | . 48 35 9 10 Gun 41 | . 22 4 5 10 Cannon 58 | . 24 30 4 . Launcher 3 | . 2 1 . . Special . | . . . . . Kinetic 66 | . 32 30 4 . Thermal 15 | . . . 5 10 Explosive 3 | . 2 1 . . Electromagnetic 18 | . 14 4 . . Robot Hit Streak 15 | . 10 15 4 4 Robot Miss Streak 2 | . 2 2 1 2 Penetration Max . | . . . . . Secondary Targets 1 | . 1 . . . Max Gunslinging Chain 1 | . 1 . . . Shots Hit Robots 73 | . 35 27 4 7 Core Hits 40 | . 16 18 2 4 Critical Kills . | . . . . . Critical Parts Destroyed . | . . . . . Critical Strikes 3 | . 2 . . 1 Burn 1 | . . . . 1 Blast 2 | . 2 . . . Melee Attacks . | . . . . . Impact . | . . . . . Slashing . | . . . . . Piercing . | . . . . . Sneak Attacks . | . . . . . Combat Hostiles . | . . . . . Follow-up Attacks . | . . . . . Damage Inflicted 1419 | . 671 490 80 178 Guns 475 | . 242 22 43 168 Cannons 767 | . 299 431 37 . Explosions 157 | . 120 37 . . Melee . | . . . . . Ramming 20 | . 10 . . 10 Kinetic 837 | . 369 431 37 . Thermal 211 | . . . 43 168 Explosive 157 | . 120 37 . . Electromagnetic 194 | . 172 22 . . Impact . | . . . . . Slashing . | . . . . . Piercing . | . . . . . Highest Corruption 8 | . . 8 . 1 Average Corruption 6 | . . 7 . 1 Corruption Purged . | . . . . . Corruption Blocked . | . . . . . Effects 3 | . . 3 . . Matter Fused 1 | . . 1 . . Data Loss (minor) 1 | . . 1 . . Data Loss (major) 1 | . . 1 . . Overload Shots . | . . . . . Overflow Damage 27 | . 12 15 . . Projectiles 27 | . 12 15 . . Explosions . | . . . . . Melee . | . . . . . Knockbacks 10 | . 7 1 2 . Impact . | . . . . . Kinetic 9 | . 6 1 2 . Secondary 1 | . 1 . . . Self-Inflicted Damage 25 | . . 21 . 4 Shots 1 | . . 1 . . Rammed 8 | . 2 . . 6 Targets Rammed 9 | . 2 . . 7 Kicked 1 | . . . . 1 Crushed . | . . . . . Highest Temperature 148 | . 18 36 108 148 Average Temperature 35 | . 12 10 42 69 Received Heat Transfer 537 | . 54 9 54 420 Siege Activations . | . . . . . Martial Activations . | . . . . . Shielding Activations . | . . . . . Robots Disrupted . | . . . . . Combat Hostiles . | . . . . . Robots Corrupted . | . . . . . Combat Hostiles . | . . . . . Parts Fried 1 | . 1 . . . Impact Corruptions . | . . . . . Robots Melted . | . . . . . Combat Hostiles . | . . . . . Parts Melted . | . . . . . Heat Transferred 444 | . . . 74 370 Parts Sabotaged . | . . . . . Parts Stolen . | . . . . . Parts Stripped . | . . . . . Power Chain Reactions . | . . . . . Alert | -11 -10 -10 -9 -9 ------- Run | Yrd Mat Min Mat Sto Maximum Alert Level . | . . . . . Low Security (%) 100 | 100 100 100 100 100 Level 1 . | . . . . . Level 2 . | . . . . . Level 3 . | . . . . . Level 4 . | . . . . . Level 5 . | . . . . . High Security . | . . . . . Max Security . | . . . . . Peak Influence 87 | . 87 41 20 27 Initial . | . . . . . Average 11 | . 33 1 1 1 Influence Increases 424 | . 275 64 27 58 Destroy 0b10 Robot/C 260 | . 160 40 20 40 Destroy 0b10 Robot/NC 35 | . 15 10 5 5 Destroy Leader 56 | . 44 10 2 . Allied During Kill 1 | . . 1 . . Successful Hack 23 | . 10 . . 13 Destroy Structure 19 | . 16 3 . . Partial Spotted 15 | . 15 . . . Lose Combat Pursuer 15 | . 15 . . . Influence Decreases 424 | . 275 64 27 58 Time Decay 356 | . 275 26 17 38 Lost Part 48 | . . 18 10 20 Lost Ally 20 | . . 20 . . Squads Dispatched 4 | . 1 1 . 2 Investigation 2 | . 1 . . 1 Extermination . | . . . . . Reinforcement 1 | . . . . 1 Assault 1 | . . 1 . . Garrison . | . . . . . Intercept . | . . . . . Searches Triggered . | . . . . . Construction Impeded . | . . . . . Haulers Reinforced . | . . . . . Active Scanning Responses . | . . . . . Cargo Convoy Interrupts . | . . . . . Stealth | -11 -10 -10 -9 -9 --------- Run | Yrd Mat Min Mat Sto Distress Signals 3 | . 2 . 1 . Communications Jammed . | . . . . . Distress Signals . | . . . . . Times Spotted 55 | . 14 19 8 14 Peak Tracking Total 10 | . 6 6 7 10 Tactical Retreats 1 | . 1 . . . Traps | -11 -10 -10 -9 -9 ------- Run | Yrd Mat Min Mat Sto Traps Triggered . | . . . . . Indirectly . | . . . . . Trap Hack Attempts . | . . . . . Triggered . | . . . . . Disarmed . | . . . . . Reprogrammed . | . . . . . Reused . | . . . . . Traps Extracted . | . . . . . Installed . | . . . . . Triggered . | . . . . . Machines | -11 -10 -10 -9 -9 ---------- Run | Yrd Mat Min Mat Sto Machines Disabled . | . . . . . Max in Single Turn . | . . . . . Machines Repaired . | . . . . . Machines Dismantled . | . . . . . Machines Sabotaged . | . . . . . Overloaded Fab Kills . | . . . . . Hacking | -11 -10 -10 -9 -9 --------- Run | Yrd Mat Min Mat Sto Machines Accessed 9 | . 5 1 1 2 Terminals 5 | . 3 . . 2 Fabricators . | . . . . . Repair Stations 1 | . 1 . . . Recycling Units 2 | . 1 . 1 . Scanalyzers . | . . . . . Garrison Access . | . . . . . Total Hacks 29 | . 21 1 3 4 Successful 24 | . 16 1 3 4 Failed 5 | . 5 . . . Catastrophic . | . . . . . Database Lockouts . | . . . . . Manual . | . . . . . Terminals 18 | . 14 . . 4 Fabricators . | . . . . . Repair Stations 4 | . 4 . . . Recycling Units 6 | . 3 . 3 . Scanalyzers . | . . . . . Garrison Access . | . . . . . Terminal Hacks 16 | . 11 1 . 4 Record 8 | . 8 . . . Prototype ID Bank 1 | . 1 . . . Open Door 2 | . . 1 . 1 Branch Access Points 2 | . 1 . . 1 Recall Reinforcements 1 | . . . . 1 Hauler Manifests 1 | . 1 . . . Zone Layout 1 | . . . . 1 Fabricator Hacks . | . . . . . Repair Station Hacks 2 | . 2 . . . Scan Component 1 | . 1 . . . Repair 1 | . 1 . . . Recycling Unit Hacks 6 | . 3 . 3 . Recycle Component 3 | . 2 . 1 . Process 2 | . . . 2 . Report Inventory 1 | . 1 . . . Scanalyzer . | . . . . . Garrison Access Hacks . | . . . . . Unauthorized Hacks . | . . . . . Terminals . | . . . . . Fabricators . | . . . . . Repair Stations . | . . . . . Recycling Units . | . . . . . Scanalyzers . | . . . . . Garrison Access . | . . . . . Data Cores Recovered . | . . . . . Used . | . . . . . Hacking Detections 8 | . 5 . 1 2 Full Trace Events 3 | . 2 . . 1 Feedback Events . | . . . . . Feedback Blocked . | . . . . . Robot Schematics Acquired . | . . . . . Robots Built . | . . . . . Authchips . | . . . . . Time . | . . . . . Total Robot Build Rating . | . . . . . Part Schematics Acquired . | . . . . . Parts Built . | . . . . . Authchips . | . . . . . Time . | . . . . . Total Part Build Rating . | . . . . . Parts Repaired 1 | . 1 . . . Time 38 | . 38 . . . Parts Recycled 3 | . 2 . 1 . Recycled Matter 283 | . . . 283 . Retrieved Matter . | . . . . . Retrieved Components . | . . . . . Parts Scanalyzed . | . . . . . Part Schematics Acquired . | . . . . . Parts Damaged . | . . . . . Bothacking | -11 -10 -10 -9 -9 ------------ Run | Yrd Mat Min Mat Sto Used RIF Installer . | . . . . . Robots Hacked . | . . . . . Non-combat . | . . . . . Combat . | . . . . . Robot Hacks Applied . | . . . . . Relay Couplers Released . | . . . . . Fabnet Peak Effective % . | . . . . . Robots Rewired . | . . . . . Allies Hacked . | . . . . . Hacks Repelled . | . . . . . Allies | -11 -10 -10 -9 -9 -------- Run | Yrd Mat Min Mat Sto Total Allies 1 | . . 1 . . Largest Group 1 | . . 1 . . Highest-Rated Group 31 | . . 31 . . Highest-Rated Ally 31 | . . 31 . . Total Orders . | . . . . . Ally Attacks 10 | . . 10 . . Total Damage 85 | . . 85 . . Kills 3 | . . 3 . . Allies Corrupted . | . . . . . Allies Melted . | . . . . . Intel | -11 -10 -10 -9 -9 ------- Run | Yrd Mat Min Mat Sto Active Infowar (turns) 831 | . . 64 245 522 Sensors 831 | . . 64 245 522 Robot Analysis Total . | . . . . . Derelict Logs Recovered 1 | . . 1 . . Drone Launches 16 | . . 16 . . Drone Recoveries . | . . . . . Exploration | -11 -10 -10 -9 -9 ------------- Run | Yrd Mat Min Mat Sto Turns Passed 2469 | 118 747 764 245 595 Spaces Moved 1205 | 70 394 413 177 151 Core 37 | 15 . 17 . 5 Treads 788 | 55 394 339 . . Legs 336 | . . 57 177 102 Wheels . | . . . . . Hover . | . . . . . Flight 44 | . . . . 44 Fastest Speed 50 | 50 160 120 120 100 Average Speed 151 | 136 160 158 120 150 Slowest Speed 300 | 160 160 300 120 250 Overloaded Moves . | . . . . . Propulsion Burnouts . | . . . . . Robots Hopped . | . . . . . Potential Cave-ins . | . . . . . Cave-ins Triggered . | . . . . . Exploration Rate (%) 34 | 6 56 61 12 38 Regions Visited 4 Branch Regions 2 Pre-discovered Areas . | . . . . . Known Exits Taken 1 | . 1 . . . Unknown Exits Taken 3 | 1 . 1 1 . Scrap Searched . | . . . . . Spaces Dug . | . . . . . Terrain Destroyed 17 | . 14 3 . . Melee . | . . . . . Projectile . | . . . . . AOE 17 | . 14 3 . . Terrain Rammed . | . . . . . Walls Destroyed . | . . . . . Machines Disabled . | . . . . . Actions | -11 -10 -10 -9 -9 --------- Run | Yrd Mat Min Mat Sto Total 1757 | 95 462 493 200 507 Wait 375 | 5 11 20 18 321 Move 1201 | 69 393 412 176 151 Hop . | . . . . . Pick Up 42 | 10 13 14 . 5 Fast Attach 1 | 1 . . . . Attach 32 | 5 6 12 1 8 Detach 9 | . 4 1 . 4 Swap 7 | . 4 3 . . Drop 18 | 5 1 11 . 1 Fire 63 | . 28 20 5 10 Melee . | . . . . . Ram 6 | . . . . 6 Kick 1 | . . . . 1 Crush 2 | . 2 . . . Escape Stasis . | . . . . . Rewire . | . . . . . Trap . | . . . . . Miscellaneous . | . . . . . Route ------- -11/Scrapyard -10/Materials (discovered 3 exits: *Mat / *Min x2) -10/Mines (discovered 2 exits: *Mat x2) -9/Materials (discovered 2 exits: Min / *Sto) -9/Storage (discovered 1 exit: Rec) History --------- Turn | Location | Event 13 | -11/Scrapyard | Discovered new exit (range 16) 119 | -11/Scrapyard | Entered Materials 149 | -10/Materials | Identified exit to Mines 308 | -10/Materials | Build established: Mutant 325 | -10/Materials | Repaired Lgt. Nuclear Core 405 | -10/Materials | Discovered new exit (range 10) 866 | -10/Materials | Entered Mines 882 | -10/Mines | Found the Drone Emporium 890 | -10/Mines | Found Prototype Device 892 | -10/Mines | Identified Decoy Drone Bay 961 | -10/Mines | Lost 16 allies 1083 | -10/Mines | Discovered new exit (range 2) 1084 | -10/Mines | Learned 4 Materials zone layouts 1176 | -10/Mines | Found a damaged Exp. Sensor Array with a note attached 1198 | -10/Mines | Found Prototype Device 1286 | -10/Mines | Joined a pair of Derelicts in attacking an 0b10 outpost 1350 | -10/Mines | Assembled infested the area 1359 | -10/Mines | Met a Derelict testing a Signal Generator 1451 | -10/Mines | Discovered new exit (range 15) 1499 | -10/Mines | Core integrity fell below 50% 1542 | -10/Mines | Identified Exp. Sensor Array 1556 | -10/Mines | Lost 6 parts (2p1n1u2w) 1630 | -10/Mines | Entered Materials 1630 | -9/Materials | Evolved 2 slots: Propulsion x1, Utility x1 1631 | -9/Materials | Identified exit to Mines 1676 | -9/Materials | Discovered new exit (range 16) 1833 | -9/Materials | Build established: Scavenger-Mutant 1875 | -9/Materials | Entered Storage 2203 | -9/Storage | Build established: Mutant 2294 | -9/Storage | Identified exit to Recycling 2402 | -9/Storage | Core integrity fell below 50% 2428 | -9/Storage | Lost 5 parts (1p2n1u1w) 2436 | -9/Storage | Core integrity fell below 20% 2470 | -9/Storage | Destroyed by S-10 Pest with Light Assault Rifle Last Messages --------------- 02392_ M-13 Machinist repairs R-06 Scavenger. 02392_ S-10 Pest destroyed. 02393_ R-06 Scavenger inserts Sml. Laser into recycling unit. 02396_ R-06 Scavenger inserts Aluminum Leg into recycling unit. 02397_ O-16 Technician: "IFF HANDSHAKE FAILED. SECURING TERMINAL." 02397_ Exp. Sensor Array destroyed. 02398_ R-06 Scavenger collects Flight Unit. 02401_ ALERT: Hostiles spotted, dispatching reinforcements to Terminal S005. 02413_ K-01 Serf cleans the Compression Vault. 02427_ Slammed into S-10 Pest. 02432_ Destabilizing: Core damaged (-4). 02434_ Slammed into S-10 Pest. 02436_ Destabilizing: System corrupted (+1). 02461_ Cld. Ion Engine destroyed. 02462_ M-13 Machinist repairs S-10 Pest. 02467_ Acquired Assault Rifle. Map ----- +----------------------------------------------------+ | ???????#####????# ! #???????????????? | | ???????# #????# ????????????????? | | ???????# #????# ? ??????????????????? | | ######?# #????# ??? ????????????????????? | | #####+############+###+#?????????????????? | | #?????????????????? | | T % #?????????????????? | | #?????????????????? | | ###################### #?????????????????? | | ##+#####??????????????????#/########??????????? | | #??????????????????# #??????????? | | #?????????????????## """" #??????????? | | #?????????????????# """" % #??????????? | | """ ########?????????### """" #??????????? | | """ ## ####??????#"" """" ###????????? | | """ ## # ??????#"Y + #???????? | | ##T # ??????#"" # #???????? | | """ ### ## ""??????### # +???????? | | """ ####+### " ????????# # #???????? | | """ ## # " ????????######/### #"??????? | | ## # " ????????????# #"??????? | | ##" "#### + ""?????######## +???????? | | ???????????????????????# """ # ######### | | ???????????????????????# "T" # # # | | ???????????????????????# # """ / # | | ???????????????????????# @! # """ # # | | ???????????????????????# # """ # # | | ???????????????????????# # # # | | ???????????????????????# # # # | | ???????????????????????# # """ # # | | ???????????????????????# g """ # # | | ???????????????????????# """ # r""" # # | | ???????????????????????# """ # %% + # | | ???????????????????????#s""" # # # | | ???????????????????????# # "" ########? | | ?????????????????#######g###### "G #??????? | | ?????????? m "" #??????? | | ?????????????????##### #??????? | | ?????????????????????# #??????? | | ?????????????????????# ##########??????? | | ?????????????????????# #???????????????? | | ?????????????????????# """ #???????????????? | | ?????????????????????# """ #???????????????? | | ?????????????????????# """ #???????????????? | | ?????????????????????# #???????????????? | | ?????????????????????# #???????????????? | | ?????????????????????# ???????????????? | | ????????????????????? #####???????????????? | | ????????????????????? ????????????????????? | | ?????????????????????# ? ????????????????????? | +----------------------------------------------------+ Best States ------------- Heat Dissipation 35 Energy Generation 14 Energy Capacity 280 Matter Stores 300 Matter Capacity 300 Sight Range 16 Robot Scan Range 20 Terrain Scan Density 10 Resistance: KI 20 Resistance: TH 20 Resistance: EX 20 Resistance: EM 20 Resistance: I 20 Resistance: S 20 Resistance: P 20 Propulsion Shielding 33 Weapon Shielding 33 Evasion (%) 55 Recoil Reduction 2 Offensive Hacking 10 Item Schematics ----------------- None Robot Schematics ------------------ None Fabricated ------------ Nothing Repaired ---------- Lgt. Nuclear Core | 78% | -10/Materials Alien Tech Used ----------------- None Achievements -------------- I Survived The Infestation Let's See Who's Tougher Challenges ------------ None Game ------ Seed TerrorDiametricRouter Manual? 0 Play Time 00:42:17 Cumulative 19.7 hours Start 2025.09.23 @ 15:55:45 End 2025.09.23 @ 16:45:40 Sessions 1 Manual Loads 0 Difficulty Adventurer Special Mode None Game No. 33 Rogue 22 Adventurer 11 Explorer 0 Win Type - Total 0 Types 0/0/0/0/0/0/0/0/0/0 Lore% 9 Gallery% 18 Achievement% 20 Wizard Run 0 Options --------- Layout 1 ASCII 0 Keyboard 0 Movement Mouse Keybinds 0 Fullscreen 2 Font 24/X11 Map View 50x35 Zoom Use 0% Tactical HUD 1 Map Filters NONE Filters NONE Steam 1 RUN: 7257a660-f952-4847-bb7a-e3f616b5b2c5